fUSD/lending_fUSD_20240906
["ID","MTS","AMOUNT","RATE_DAILY","PERIOD"]
[337396647,1725638475997,500.0,0.00031684,33]
[337396648,1725638476295,500.0,0.00031684,33]
[337396649,1725638476583,500.0,0.00031684,33]
[337396650,1725638476981,500.0,0.00031684,33]
[337396651,1725638477105,500.0,0.00031684,33]
[337396652,1725638477358,500.0,0.00031684,33]
[337396653,1725638477638,500.0,0.00031684,33]
[337396654,1725638477890,500.0,0.00031684,33]
[337396655,1725638478167,288.8,0.00031684,33]
[337396656,1725638655063,500.0,0.00031719,33]
[337396657,1725638655266,500.0,0.00031719,33]
[337396658,1725638655546,500.0,0.00031719,33]
[337396659,1725638655827,500.0,0.00031719,33]
[337396660,1725638656105,500.0,0.00031719,33]
[337396661,1725638656372,500.0,0.00031719,33]
[337396662,1725638656651,500.0,0.00031719,33]
[337396663,1725638657108,500.0,0.00031719,33]
[337396664,1725638657699,314.19,0.00031719,33]
[337396665,1725638662487,595.8307558,0.00031719,33]
[337396666,1725638700769,750.0,0.00011,2]
[337396668,1725638755585,500.0,0.00031719,33]
[337396669,1725638755868,500.0,0.00031719,33]
[337396670,1725638756122,500.0,0.00031719,33]
[337396671,1725638756412,500.0,0.00031719,33]
[337396672,1725638756688,500.0,0.00031719,33]
[337396673,1725638756968,500.0,0.00031719,33]
[337396674,1725638757248,531.4,0.00031719,33]
[337396675,1725638757559,266.51,0.00011966,2]
[337396676,1725638772386,500.0,0.00031719,33]
[337396677,1725638772694,168.58,0.00031719,33]
[337396678,1725638838949,305.08718847,0.00031719,33]
[337396679,1725638855823,1056.11037252,0.00031719,120]
[337396685,1725638948260,500.0,0.00031719,33]
[337396693,1725639023863,164.62,0.00010959,2]
[337396704,1725639032362,-800.0,0.00013,2]
[337396705,1725639032372,-1246.25,0.000136,2]
[337396706,1725639032382,-657.182,0.00013647,2]
[337396707,1725639032392,-624.0,0.00013647,2]
[337396708,1725639032401,-182.77,0.00013699,2]
[337396709,1725639032410,-231.3,0.00013699,2]
[337396710,1725639032420,-200.0,0.00013761,2]
[337396711,1725639032429,-442.43,0.0001381,2]
[337396712,1725639032440,-250.0,0.00013814,2]
[337396713,1725639032450,-2751.0,0.00013817,2]
[337396714,1725639032459,-500.0,0.00013845,2]
[337396715,1725639032469,-300.0,0.00013848,2]
[337396716,1725639032478,-1000.0,0.00013849,2]
[337396717,1725639032488,-151.79,0.00013887,2]
[337396718,1725639032497,-499.99,0.00013887,2]
[337396719,1725639032507,-150.0,0.00014,2]
[337396720,1725639032516,-413.93,0.00014113,30]
[337396721,1725639032525,-266.51,0.00014229,2]
[337396722,1725639032534,-182.77,0.00014384,2]
[337396723,1725639032544,-150.0,0.000146,2]
[337396724,1725639032554,-346.21774156,0.00014622,2]
[337396725,1725639032565,-11762.84213324,0.0001485,2]
[337396726,1725639032574,-2898.24649925,0.0001485,2]
[337396727,1725639032585,-1570.13491,0.0001485,2]
[337396728,1725639032596,-251.38102089,0.0001488,2]
[337396730,1725639032615,-2854.6015,0.0001488,2]
[337396756,1725639038430,-2006.51991912,0.0001488,2]
[337396757,1725639038439,-782.95,0.000149,2]
[337396758,1725639038449,-335.0901,0.000149,2]
[337396759,1725639038458,-3269.55736179,0.000149,2]
[337396760,1725639038467,-665.84644863,0.000149,2]
[337396761,1725639038476,-152.0,0.0001499,30]
[337396762,1725639038486,-255209.876865,0.0001499,3]
[337396763,1725639038496,-223012.873774,0.0001499,3]
[337396764,1725639038505,-1475.52199812,0.00014999,5]
[337396765,1725639038515,-862.0,0.00015,2]
[337396766,1725639038524,-3291402.01784998,0.00015,2]
[337396767,1725639038536,-5162.99999999,0.00015,2]
[337396768,1725639038547,-2101.94278492,0.00015,2]
[337396769,1725639038691,-1160.84706,0.00015,2]
[337396770,1725639038746,-785.78700674,0.00015,2]
[337396772,1725639040320,-303.33336197,0.00015,2]
[337396773,1725639040333,-2177.245,0.00015,2]
[337396774,1725639040345,-542.055,0.00015,2]
[337396775,1725639040359,-300.0,0.00015,2]
[337396776,1725639040635,-1789.08360229,0.00015,2]
[337396820,1725639042587,250.0,0.00011773,2]
[337396833,1725639043530,-548.25856281,0.00015,2]
[337396834,1725639043543,-219.74143719,0.00015,2]
[337396835,1725639043552,-20244.54856281,0.00015,2]
[337396836,1725639043564,-273.20557687,0.00015,2]
[337396837,1725639043576,-562.6023957,0.00015,2]
[337396838,1725639043593,-542.46,0.00015,2]
[337396840,1725639043606,-18386.04645497,0.00015,2]
[337396842,1725639043618,-14521.78405893,0.00015,2]
[337396844,1725639043630,-1066.41233866,0.00015,2]
[337396847,1725639043641,-4216.28383559,0.00015,2]
[337396849,1725639043653,-942.316296,0.00015,2]
[337396851,1725639043664,-1343.9598076,0.00015,2]
[337396853,1725639043675,-730.07140233,0.00015,2]
[337396855,1725639043687,-652.62529538,0.00015,2]
[337396905,1725639046406,-527.52697,0.00015,2]
[337396907,1725639046418,-162.47303,0.00015,2]
[337396908,1725639046427,-7588.76166076,0.00015,2]
[337396910,1725639046438,-26877.33789916,0.00015,2]
[337396912,1725639046448,-635.39287192,0.00015,2]
[337396913,1725639046461,-743.3523116,0.00015,2]
[337396914,1725639046517,-5784.84070337,0.00015,2]
[337396915,1725639046530,-1490.14655744,0.00015,2]
[337396916,1725639046541,-14599.27129953,0.00015,2]
[337396917,1725639046572,-997.29786791,0.00015,2]
[337396918,1725639046583,-1874.06416438,0.00015,2]
[337396919,1725639046628,-3929.113636,0.00015,2]
[337396920,1725639046639,-943.31862009,0.00015,2]
[337396921,1725639046684,-2603.62177041,0.00015,2]
[337396922,1725639046696,-3145.66036694,0.00015,2]
[337396923,1725639046708,-734.01641473,0.00015,2]
[337396924,1725639046720,-812.74759037,0.00015,2]
[337396926,1725639046741,-11450.0,0.00015,2]
[337397721,1725639142163,342.36514523,0.00031719,33]
[337397722,1725639326647,10000.0,0.00031719,33]
[337397723,1725639357156,5000.0,0.00031719,33]
[337397724,1725639380078,5000.0,0.00031719,33]
[337397725,1725639437828,5000.0,0.00031719,33]
[337397726,1725639542911,5000.0,0.00031687,33]
[337397727,1725639552481,5000.0,0.00031687,33]
[337397728,1725639566523,5000.0,0.00031687,33]
[337397729,1725639576900,5000.0,0.00031687,33]
[337397730,1725639588586,161.58,0.00010959,2]
[337397731,1725639636579,500.0,0.00031687,33]
[337397732,1725639636803,500.0,0.00031687,33]
[337397733,1725639637080,500.0,0.00031687,33]
[337397734,1725639637346,560.90978981,0.00031687,33]
[337397735,1725639639445,500.0,0.00031687,33]
[337397736,1725639639712,500.0,0.00031687,33]
[337397737,1725639639969,500.0,0.00031687,33]
[337397738,1725639640550,500.0,0.00031687,33]
[337397739,1725639640866,500.0,0.00031687,33]
[337397740,1725639641142,288.11666362,0.00031687,33]
[337397741,1725639642233,500.0,0.00031687,33]
[337397742,1725639642504,500.0,0.00031687,33]
[337397743,1725639642784,500.0,0.00031687,33]
[337397744,1725639643065,500.0,0.00031687,33]
[337397745,1725639643353,437.83381577,0.00031687,33]
[337397746,1725639729015,2088.01,0.00012,2]
[337397766,1725640231440,-239.85,0.00012109,2]
[337397767,1725640231450,-198.73020339,0.000132,2]
[337397768,1725640231498,-3801.26979661,0.000132,2]
[337397769,1725640231507,-1059.31,0.000136,2]
[337397770,1725640231517,-192.75,0.00013699,2]
[337397771,1725640231526,-2498.55947328,0.00013839,2]
[337397772,1725640231536,-200.0,0.00013839,2]
[337397773,1725640231545,-200.02,0.00013864,2]
[337397774,1725640231555,-2751.0,0.0001395,2]
[337397775,1725640231564,-500.0,0.0001395,2]
[337397776,1725640231574,-200.0,0.00013967,2]
[337397777,1725640231583,-393.23,0.00014148,30]
[337397778,1725640231593,-800.0,0.00014155,2]
[337397779,1725640231606,-198.56,0.00014183,2]
[337397780,1725640231620,-250.0,0.00014237,2]
[337397781,1725640231629,-239.85,0.00014373,2]
[337397782,1725640231638,-327.68096854,0.00014577,2]
[337397783,1725640231649,-51.61860355,0.00014577,2]
[337397784,1725640231659,-8503.5159737,0.0001485,2]
[337397785,1725640231670,-867.99252291,0.0001485,2]
[337397786,1725640231682,-105.06808885,0.0001485,2]
[337397787,1725640231691,-668.52975343,0.0001489,2]
[337397788,1725640231701,-668.52975339,0.00014891,2]
[337397789,1725640231710,-668.52975339,0.00014892,2]
[337397790,1725640231720,-259.29706271,0.000149,2]
[337397792,1725640231730,-150.0,0.00014989,2]
[337397794,1725640231739,-2299.76847704,0.0001499,3]
[337397796,1725640231751,-3741.59974573,0.0001499,3]
[337397806,1725640237714,-668.52975339,0.00014893,2]
[337397807,1725640237723,-1869.92772421,0.0001499,3]
[337397808,1725640237737,-4938.80875883,0.0001499,3]
[337397809,1725640237748,-2074.77467149,0.0001499,3]
[337397810,1725640237772,-5408.243,0.0001499,3]
[337397811,1725640237831,-2282.94385054,0.0001499,3]
[337397813,1725640237842,-2031.82864,0.0001499,3]
[337397814,1725640237853,-373.6491406,0.0001499,3]
[337397977,1725640239465,-869.59654346,0.0001499,3]
[337397984,1725640239523,-501.04428,0.0001499,3]
[337397996,1725640239636,-950.90019971,0.0001499,3]
[337397997,1725640239648,-375.495108,0.0001499,3]
[337397998,1725640239748,-1577.83502232,0.0001499,3]
[337398015,1725640239940,-448.47499998,0.0001499,3]
[337398017,1725640239951,-22194.97216554,0.0001499,3]
[337398019,1725640239963,-4580.2,0.0001499,3]
[337398254,1725640242588,-668.52975339,0.00014894,2]
[337398256,1725640242597,-15842.67023661,0.0001499,3]
[337398272,1725640242982,-2056.98121614,0.0001499,3]
[337398543,1725640245646,-668.52975339,0.00014896,2]
[337398545,1725640245656,-32320.24860225,0.0001499,3]
[337398551,1725640245703,-271.85847537,0.0001499,3]
[337398562,1725640245814,-271.15,0.0001499,3]
[337398569,1725640245873,-1143.278,0.0001499,3]
[337398571,1725640245885,-434.0,0.0001499,3]
[337400458,1725640266990,250.0,0.00011773,2]
[337403140,1725640296230,169.22,0.00011773,2]
[337404392,1725640413034,200.0,0.00026723,120]
[337404393,1725640504448,750.0,0.00011,2]
[337404394,1725640518567,235.23,0.0001171,2]
[337404395,1725640570016,321.87,0.00010959,2]
[337404396,1725641053070,223.46,0.00011565,2]
[337404408,1725641431708,-600.0,0.0001235,2]
[337404409,1725641431717,-132.10144154,0.0001235,2]
[337404410,1725641431729,-467.89855846,0.0001235,2]
[337404411,1725641431740,-600.0,0.0001235,2]
[337404412,1725641431749,-600.0,0.00012929,2]
[337404413,1725641431759,-600.0,0.00013013,2]
[337404414,1725641431769,-600.0,0.00013013,2]
[337404415,1725641431778,-150.0,0.0001326,2]
[337404416,1725641431788,-840.0,0.000133,2]
[337404417,1725641431797,-158.85,0.00013308,2]
[337404418,1725641431810,-160.0,0.00013315,2]
[337404419,1725641431820,-250.0,0.00013338,2]
[337404420,1725641431829,-250.0,0.00013338,2]
[337404421,1725641431839,-160.873095,0.00013367,2]
[337404422,1725641431849,-185.622804,0.00013367,2]
[337404423,1725641431858,-1231.36,0.00013367,2]
[337404424,1725641431868,-32895.3,0.00013367,2]
[337404425,1725641431878,-151.99,0.00013423,2]
[337404426,1725641431888,-201.14,0.00013434,2]
[337404427,1725641431898,-500.0,0.00013471,2]
[337404428,1725641431908,-1684.24,0.00013484,2]
[337404429,1725641431917,-160.873095,0.00013534,2]
[337404430,1725641431927,-373.56,0.00013544,30]
[337404431,1725641431937,-1015.69,0.000136,2]
[337404432,1725641431947,-150.0,0.000136,2]
[337404433,1725641431957,-200.0,0.00013699,2]
[337404434,1725641431966,-187.74,0.00013699,2]
[337404435,1725641431976,-2751.0,0.00013699,2]
[337404436,1725641431985,-160.873095,0.00013701,2]
[337404437,1725641431995,-1100.0,0.0001377,2]
[337404438,1725641432005,-600.0,0.0001377,2]
[337404439,1725641432015,-508.889891,0.000138,2]
[337404440,1725641432024,-223.46,0.00013829,2]
[337404441,1725641432033,-160.873095,0.00013869,2]
[337404442,1725641432043,-1546.0,0.00013907,2]
[337404443,1725641432056,-447.0,0.00013907,2]
[337404444,1725641432067,-1260.0,0.00013907,2]
[337404445,1725641432077,-624.0,0.00013907,2]
[337404446,1725641432086,-557.0,0.00013907,2]
[337404447,1725641432096,-931.0,0.00013907,2]
[337404448,1725641432105,-150.0,0.00013907,2]
[337404449,1725641432114,-810.0,0.00013907,2]
[337404451,1725641432124,-1899.0,0.00013907,2]
[337404453,1725641432133,-552.0,0.00013907,2]
[337404455,1725641432141,-805.0,0.00013907,2]
[337404456,1725641432150,-3341.0,0.00013907,2]
[337404458,1725641432159,-248.0,0.00013907,2]
[337404459,1725641432168,-1922.0,0.00013907,2]
[337404461,1725641432177,-1134.0,0.00013907,2]
[337404462,1725641432187,-250.0,0.00013907,2]
[337404464,1725641432197,-946.333,0.00013907,2]
[337404466,1725641432206,-216.0,0.00013907,2]
[337404468,1725641432215,-9082.949,0.00013907,2]
[337404470,1725641432224,-267.025,0.00013907,2]
[337404472,1725641432233,-200.0,0.00013907,2]
[337404473,1725641432242,-187.064,0.00013907,2]
[337404475,1725641432250,-190.924,0.00013907,2]
[337404477,1725641432259,-1144.0,0.00013907,2]
[337404479,1725641432268,-163.289,0.00013907,2]
[337404481,1725641432277,-151.614,0.00013907,2]
[337404483,1725641432287,-297.134,0.00013907,2]
[337404485,1725641432297,-182.77,0.0001392,2]
[337404486,1725641432310,-150.0,0.00014,2]
[337404488,1725641432319,-152.747,0.00014,2]
[337404490,1725641432328,-160.873095,0.00014036,2]
[337404492,1725641432337,-192.25,0.0001414,2]
[337404494,1725641432346,-150.03,0.00014153,2]
[337404495,1725641432355,-152.747,0.00014735,2]
[337404497,1725641432365,-400.2275235,0.0001478,2]
[337404499,1725641432375,-2286.26554777,0.0001485,2]
[337404501,1725641432384,-4644.06375209,0.0001485,2]
[337404503,1725641432393,-1000.0,0.0001489,2]
[337404505,1725641432402,-1189.8323,0.00014899,2]
[337404507,1725641432412,-267.41190141,0.00014899,2]
[337404508,1725641432420,-324.70666098,0.00014899,2]
[337404510,1725641432430,-267.41190135,0.00014899,2]
[337404512,1725641432439,-267.41190135,0.00014899,2]
[337404514,1725641432450,-267.41190135,0.00014899,2]
[337404516,1725641432461,-267.41190135,0.00014899,2]
[337404518,1725641432470,-324.70666097,0.000149,2]
[337404520,1725641432479,-267.41190135,0.000149,2]
[337404522,1725641432488,-267.41190135,0.000149,2]
[337404524,1725641432498,-267.41190135,0.000149,2]
[337404526,1725641432507,-267.41190135,0.000149,2]
[337404527,1725641432515,-980.56498919,0.000149,2]
[337404529,1725641432525,-2008.9436914,0.000149,2]
[337404531,1725641432536,-191.94175387,0.000149,2]
[337404533,1725641432546,-212.01974504,0.000149,2]
[337404535,1725641432560,-267.41190135,0.000149,2]
[337404537,1725641432570,-335.0061,0.000149,2]
[337404539,1725641432579,-324.70666097,0.000149,2]
[337404541,1725641432589,-165.19422617,0.000149,2]
[337404542,1725641432598,-11072.01210482,0.000149,2]
[337404543,1725641432607,-840.0,0.00014963,2]
[337404544,1725641432616,-700.0,0.0001497,2]
[337404545,1725641432625,-700.0,0.0001497,2]
[337404546,1725641432634,-400.0,0.0001497,2]
[337404547,1725641432643,-400.0,0.0001497,2]
[337404548,1725641432652,-158.85,0.00014972,2]
[337404549,1725641432661,-160.9832882,0.00014973,2]
[337404550,1725641432671,-160.0,0.00014979,2]
[337404551,1725641432680,-500.0,0.00014986,2]
[337404552,1725641432690,-150.77,0.00014989,2]
[337404553,1725641432699,-2384.8188,0.00014989,2]
[337404554,1725641432708,-386.78227157,0.00014989,2]
[337404555,1725641432717,-217106.340172,0.0001499,3]
[337404556,1725641432726,-125104.782849,0.0001499,3]
[337404557,1725641432736,-150.77,0.0001499,2]
[337404558,1725641432745,-150.77,0.0001499,2]
[337404559,1725641432755,-150.77,0.0001499,2]
[337404560,1725641432764,-150.77,0.0001499,2]
[337404561,1725641432772,-150.77,0.0001499,2]
[337404562,1725641432782,-150.0,0.00014999,2]
[337404563,1725641432791,-8621.26086677,0.00014999,2]
[337404564,1725641432801,-1000.0,0.00014999,2]
[337404565,1725641432811,-1000.0,0.00014999,2]
[337404566,1725641432820,-1000.0,0.00014999,2]
[337404567,1725641432828,-1000.0,0.00014999,2]
[337404568,1725641432837,-1000.0,0.00014999,2]
[337404569,1725641432846,-1000.0,0.00014999,2]
[337404570,1725641432855,-1000.0,0.00014999,2]
[337404571,1725641432865,-1000.0,0.00014999,2]
[337404572,1725641432874,-1008.8556,0.00014999,2]
[337404573,1725641432883,-391.24464655,0.00014999,2]
[337404574,1725641432893,-2236.74594124,0.00014999,2]
[337404575,1725641432902,-35000.0,0.00014999,2]
[337404576,1725641432911,-500.0,0.00014999,2]
[337404577,1725641432920,-41528.8971737,0.00014999,2]
[337404578,1725641433075,-2763.18092288,0.00014999,2]
[337404579,1725641433087,-13954.90780502,0.00014999,2]
[337404580,1725641433097,-3007.84703718,0.00014999,3]
[337404581,1725641433107,-12146.7386478,0.00014999,2]
[337404582,1725641433116,-5767.44681204,0.00014999,2]
[337404583,1725641433125,-345.33034102,0.00014999,2]
[337404584,1725641433134,-677.0,0.00015,2]
[337404585,1725641433144,-48304.73075388,0.00015,2]
[337404586,1725641433155,-326065.50945038,0.00015,2]
[337404587,1725641433164,-42137.06295194,0.00015,2]
[337404588,1725641433179,-3094.63215291,0.00015,2]
[337404589,1725641433190,-676.1,0.00015,2]
[337404590,1725641433203,-2871.78515676,0.00015,2]
[337404591,1725641433214,-3753.76120749,0.00015,2]
[337404592,1725641433225,-2233.16988502,0.00015,2]
[337404593,1725641433236,-10808.08059513,0.00015,2]
[337404594,1725641433247,-647.470824,0.00015,2]
[337404595,1725641433258,-24979.78840758,0.00015,2]
[337404596,1725641433269,-1245.568807,0.00015,2]
[337404597,1725641433281,-81653.74939891,0.00015,2]
[337404598,1725641433290,-3973.68589913,0.00015,2]
[337404607,1725641437685,-305.07545363,0.00013907,2]
[337404609,1725641437697,-772.92454637,0.00013907,2]
[337404611,1725641437707,-4627.07545363,0.00015,2]
[337404613,1725641437718,-1945.30201208,0.00015,2]
[337404615,1725641437729,-1054.81875764,0.00015,2]
[337404617,1725641437741,-1381.35647088,0.00015,2]
[337404619,1725641437753,-812.74548487,0.00015,2]
[337404620,1725641437764,-269.085,0.00015,2]
[337404621,1725641437776,-4677.82886025,0.00015,2]
[337404622,1725641437788,-2785.101,0.00015,2]
[337404623,1725641437799,-635.6025,0.00015,2]
[337404624,1725641437818,-250.0,0.00013907,2]
[337404625,1725641437828,-2302.2244748,0.00015,2]
[337404626,1725641437870,-1726441.98293294,0.00015,2]
[337404627,1725641437979,-607.0,0.00015,2]
[337404628,1725641438037,-1427.2185654,0.00015,2]
[337404769,1725641439743,-321.04500001,0.00015,2]
[337404771,1725641439755,-3653.02000002,0.00015,2]
[337404773,1725641439766,-27000.0,0.00015,2]
[337404792,1725641439956,-9786.52841234,0.00015,2]
[337404794,1725641439967,-270.5,0.00015,2]
[337404796,1725641439978,-485.755,0.00015,2]
[337404798,1725641439989,-1500.0,0.00015,2]
[337404800,1725641440000,-2697.85,0.00015,2]
[337404873,1725641443304,-653.0,0.00015,2]
[337404874,1725641443317,-4766.81,0.00015,2]
[337404875,1725641443329,-4638.51,0.00015,2]
[337404876,1725641443352,-482.285006,0.00015,2]
[337404877,1725641443363,-4329.76,0.00015,2]
[337404878,1725641443379,-14194.49109469,0.00015,2]
[337404910,1725641445840,-229.876,0.00013908,2]
[337404912,1725641445850,-202.524,0.00015,2]
[337404915,1725641445864,-669.58337309,0.00015,2]
[337404926,1725641445957,-1353.323184,0.00015,2]
[337404928,1725641445969,-566.45,0.00015,2]
[337404930,1725641445980,-259.73999418,0.00015,2]
[337404932,1725641445991,-276.75,0.00015,2]
[337404935,1725641446002,-270.27,0.00015,2]
[337405053,1725641664194,221.28,0.00011804,2]
[337405054,1725641706031,487.18357956,0.00027,120]
[337405055,1725641845745,392.51,0.00011773,2]
[337405056,1725641957193,164.62,0.00010959,2]
[337405058,1725642197486,12614.27,0.00011773,2]
[337405059,1725642285848,200.13472148,0.00011714,2]
[337405060,1725642307059,750.0,0.00011,2]
[337405061,1725642345606,210.21,0.00011494,2]
[337405070,1725642631868,-1339.32568212,0.00013381,2]
[337405071,1725642631880,-144.38431788,0.00013381,2]
[337405072,1725642631890,-500.0,0.00013405,2]
[337405073,1725642631899,-246.64,0.0001341,2]
[337405074,1725642631912,-196.25,0.00013412,2]
[337405075,1725642631921,-250.0,0.00013413,2]
[337405076,1725642631931,-4067.95659312,0.00013414,2]
[337405077,1725642631940,-207.0,0.00013414,2]
[337405078,1725642631950,-250.0,0.00013415,2]
[337405079,1725642631959,-250.0,0.00013419,2]
[337405080,1725642631972,-160.91,0.00013434,2]
[337405081,1725642631982,-300.0,0.0001354,2]
[337405082,1725642631991,-200.0,0.00013541,2]
[337405083,1725642632000,-3142.12528836,0.00013541,2]
[337405084,1725642632012,-6683.26958659,0.00013541,2]
[337405085,1725642632023,-909.30987856,0.00013541,2]
[337405086,1725642632035,-636.79253411,0.00013541,2]
[337405087,1725642632053,-619.65174307,0.00013541,2]
[337405088,1725642632065,-474.46635641,0.00013541,2]
[337405089,1725642632076,-740.97,0.00013541,2]
[337405090,1725642632092,-1697.0288294,0.00013541,2]
[337405091,1725642632104,-315.0,0.00013541,2]
[337405092,1725642632116,-5375.0257835,0.00013541,2]
[337405093,1725642632126,-499.99,0.00013545,2]
[337405094,1725642632136,-354.88,0.00013545,30]
[337405095,1725642632145,-878.54375464,0.00013547,2]
[337405096,1725642632160,-621.45624536,0.00013547,2]
[337405097,1725642632169,-863.34,0.000136,2]
[337405098,1725642632179,-179.72,0.0001362,2]
[337405099,1725642632189,-1000.0,0.00013625,2]
[337405100,1725642632198,-150.0,0.00013698,2]
[337405101,1725642632209,-200.0,0.00013699,2]
[337405102,1725642632219,-156.45,0.00013699,2]
[337405103,1725642632229,-865.7812394,0.00013699,2]
[337405104,1725642632241,-603.91888408,0.00013699,2]
[337405105,1725642632252,-787.72537109,0.00013699,2]
[337405106,1725642632264,-493.57450543,0.00013699,2]
[337405107,1725642632274,-182.77,0.00013699,2]
[337405109,1725642632283,-132.79953068,0.00013758,2]
[337405111,1725642632296,-77.41046932,0.00013758,2]
[337405112,1725642632305,-150.0,0.00013878,2]
[337405113,1725642632315,-183.787,0.00013878,2]
[337405114,1725642632325,-1078.0,0.00013878,2]
[337405115,1725642632335,-229.39797833,0.000139,5]
[337405116,1725642632347,-470.60202167,0.000139,5]
[337405117,1725642632356,-187.809,0.00013908,2]
[337405118,1725642632365,-262.006,0.00013908,2]
[337405119,1725642632374,-263.892,0.00013908,2]
[337405120,1725642632383,-250.0,0.00013908,2]
[337405121,1725642632393,-170.363,0.00013908,2]
[337405122,1725642632403,-201.318,0.00013908,2]
[337405123,1725642632412,-150.237,0.00013908,2]
[337405124,1725642632421,-923.25247833,0.00013908,2]
[337405125,1725642632432,-336.74752167,0.00013908,2]
[337405126,1725642632442,-447.0,0.00013908,2]
[337405127,1725642632452,-624.0,0.00013908,2]
[337405128,1725642632463,-1454.28364674,0.00013908,2]
[337405129,1725642632475,-91.71635326,0.00013908,2]
[337405130,1725642632484,-557.0,0.00013908,2]
[337405131,1725642632494,-150.0,0.00013908,2]
[337405132,1725642632503,-583.23555231,0.00013908,2]
[337405133,1725642632514,-347.76444769,0.00013908,2]
[337405134,1725642632524,-364.25922548,0.00013908,2]
[337405135,1725642632535,-445.74077452,0.00013908,2]
[337405136,1725642632544,-55.49460692,0.00013908,2]
[337405137,1725642632556,-1843.50539308,0.00013908,2]
[337405138,1725642632565,-552.0,0.00013908,2]
[337405139,1725642632574,-248.0,0.00013908,2]
[337405140,1725642632583,-260.20767678,0.00013908,2]
[337405141,1725642632596,-3080.79232322,0.00013908,2]
[337405142,1725642632605,-340.76612845,0.00013908,2]
[337405143,1725642632617,-1581.23387155,0.00013908,2]
[337405144,1725642632627,-647.30198187,0.00013908,2]
[337405145,1725642632646,-486.69801813,0.00013908,2]
[337405146,1725642632657,-805.0,0.00013908,2]
[337405147,1725642632666,-150.0,0.00014,2]
[337405148,1725642632675,-152.747,0.00014,2]
[337405149,1725642632685,-1286.71745306,0.00014,5]
[337405150,1725642632697,-213.28254694,0.00014,5]
[337405151,1725642632706,-2300.0,0.000141,5]
[337405152,1725642632716,-3100.0,0.000142,5]
[337405153,1725642632725,-169.22,0.00014223,2]
[337405154,1725642632735,-1318.192792,0.000143,5]
[337405155,1725642632748,-569.99999994,0.000143,5]
[337405156,1725642632760,-351.899999,0.000143,5]
[337405157,1725642632783,-606.92564985,0.000143,5]
[337405158,1725642632794,-1052.98155921,0.000143,5]
[337405159,1725642632805,-700.0,0.000144,5]
[337405160,1725642632815,-700.0,0.000145,5]
[337405161,1725642632825,-40.06828173,0.000146,5]
[337405162,1725642632836,-445.10286169,0.000146,5]
[337405166,1725642637944,-214.82885658,0.000146,5]
[337405167,1725642637954,-400.2275236,0.00014605,2]
[337405168,1725642637963,-700.0,0.000147,5]
[337405169,1725642637972,-152.747,0.00014735,2]
[337405170,1725642637982,-482.807058,0.00014795,2]
[337405171,1725642637992,-556.16500128,0.000148,5]
[337405172,1725642638003,-999.83499872,0.000148,5]
[337405173,1725642638013,-420.0,0.00014841,2]
[337405174,1725642638023,-1539.02575318,0.0001485,2]
[337405175,1725642638035,-448.32324682,0.0001485,2]
[337405176,1725642638045,-1980.25565628,0.0001489,2]
[337405177,1725642638054,-5540.59303159,0.0001489,2]
[337405178,1725642638066,-307.08186841,0.0001489,2]
[337405179,1725642638076,-3151.61127683,0.0001489,2]
[337405180,1725642638088,-21530.68752317,0.0001489,2]